bitfinex-derivatives/quotes_ETHF0:USTF0_20250704
["timestamp","ask_amount","ask_price","bid_price","bid_amount"]
[1751609031999,0.77893,2566.8,2566.7,0.77894]
[1751609032398,3.2078,2566.9,2566.8,0.77891]
[1751609032698,15.20561,2567.2,2567.0,0.77882]
[1751609033196,0.77882,2567.1,2567.0,0.77882]
[1751609033500,0.77888,2566.9,2566.8,1.46869]
[1751609033697,3.2078,2566.9,2566.8,1.46869]
[1751609034202,3.98668,2566.9,2566.8,1.46869]
[1751609034397,3.2078,2566.9,2566.8,1.46869]
[1751609035601,0.77892,2566.8,2566.3,5.15544]
[1751609035800,0.77893,2566.8,2566.7,0.77893]
[1751609036097,0.77895,2566.7,2566.6,0.77895]
[1751609040004,0.77895,2566.7,2566.4,1.9747]
[1751609040005,0.77893,2566.8,2566.7,0.77892]
[1751609040902,4.68719,2566.9,2566.8,0.77891]
[1751609041101,0.77892,2566.8,2566.7,0.77892]
[1751609041402,0.77897,2566.6,2566.5,0.77898]
[1751609042705,0.77903,2566.5,2566.4,0.77901]
[1751609042893,7.50418548,2566.8,2566.3,4.65716]
[1751609042894,0.77903,2566.4,2566.3,4.65716]
[1751609043301,0.77903,2566.5,2566.4,0.77901]
[1751609044904,0.6519,2566.7,2566.5,0.77897]
[1751609045101,48.0479,2566.7,2566.3,5.2423]
[1751609045309,0.77903,2566.4,2566.3,6.02133]
[1751609045502,0.77903,2566.4,2566.3,4.65713]
[1751609045697,0.77901,2566.5,2566.4,0.77901]
[1751609045899,0.77898,2566.6,2566.5,0.77899]
[1751609046202,4.36138229,2566.6,2565.6,5.15593]
[1751609046395,0.77901,2566.5,2566.4,0.77902]
[1751609046602,11.99401,2566.5,2566.4,0.77902]
[1751609046909,0.77904,2566.4,2566.3,0.77904]
[1751609047401,11.215,2566.5,2566.4,0.77903]
[1751609047402,11.99402,2566.5,2566.4,0.77903]
[1751609047599,3.2078,2566.6,2566.5,0.779]
[1751609047802,0.779,2566.5,2566.4,0.77901]
[1751609048707,3.98679,2566.6,2566.4,0.77901]
[1751609048908,0.779,2566.5,2566.4,0.77901]
[1751609050209,3.98678,2566.6,2566.5,0.779]
[1751609050603,0.779,2566.5,2566.4,0.77901]
[1751609051015,3.98679,2566.6,2566.4,0.77901]
[1751609051208,3.2078,2566.6,2565.7,1.9481]
[1751609051417,0.77903,2566.4,2566.3,0.77904]
[1751609051706,14.4228,2566.6,2566.5,0.779]
[1751609052008,5.87946068,2566.6,2566.0,2.0762]
[1751609052202,0.77905,2566.4,2566.3,0.77906]
[1751609052402,0.77901,2566.5,2566.0,2.0762]
[1751609052604,0.77901,2566.5,2566.3,0.77903]
[1751609052804,6.65844068,2566.6,2566.4,0.77901]
[1751609053005,6.65844068,2566.6,2566.0,4.02404]
[1751609053006,3.98677,2566.6,2566.5,0.779]
[1751609053212,3.2078,2566.6,2566.4,0.77901]
[1751609053512,3.98679,2566.6,2566.4,0.77901]
[1751609053710,3.98679,2566.6,2566.5,0.779]
[1751609053911,7.03472952,2566.6,2566.2,0.77906]
[1751609054111,0.77906,2566.3,2566.2,0.77906]
[1751609054809,0.77906,2566.3,2566.1,0.7791]
[1751609055010,0.77906,2566.3,2566.2,1.2872]
[1751609055212,3.98686,2566.3,2566.2,1.2872]
[1751609055509,0.77912,2566.1,2566.0,0.665]
[1751609056702,3.2078,2566.3,2566.0,0.665]
[1751609056911,2.67166068,2566.1,2565.6,3.2078]
[1751609057112,2.67166068,2566.1,2565.7,0.77921]
[1751609057411,0.77921,2565.8,2565.7,0.77921]
[1751609057604,0.77921,2565.8,2565.7,1.3927]
[1751609059315,0.77927,2565.6,2565.5,0.6874]
[1751609060907,0.77933,2565.4,2565.3,3.2078]
[1751609061108,0.77945,2565.0,2564.9,5.36e-06]
[1751609061304,3.2078,2565.5,2564.9,5.36e-06]
[1751609061509,3.2078,2565.5,2565.0,2.67166068]
[1751609061510,11.217,2565.4,2565.0,2.67166068]
[1751609061708,0.77939,2565.2,2565.1,1.3096]
[1751609063211,0.77939,2565.2,2565.1,2.08902]
[1751609063416,0.77939,2565.2,2565.1,1.3096]
[1751609065506,2.67166068,2565.4,2565.1,2.08902]
[1751609065507,0.77938,2565.3,2565.1,2.08902]
[1751609065713,15.20512,2565.5,2565.3,0.77935]
[1751609066017,3.98712,2565.5,2565.4,1.9722]
[1751609066209,3.98712,2565.5,2565.4,0.6742]
[1751609067416,0.77936,2565.3,2565.2,0.6687]
[1751609067714,3.45102068,2565.3,2565.2,0.6687]
[1751609069011,3.45102068,2565.3,2565.0,1.46453]
[1751609069012,0.77942,2565.1,2565.0,1.46453]
[1751609069410,0.77942,2565.1,2565.0,2.78113]
[1751609069709,0.77942,2565.1,2565.0,2.0017]
[1751609069910,3.45108068,2565.1,2565.0,2.0017]
[1751609070218,3.45108068,2565.1,2565.0,0.6851]
[1751609070715,0.77945,2565.0,2564.9,5.36e-06]
[1751609070920,12.69305,2565.0,2564.9,5.36e-06]
[1751609071313,1.48205,2565.0,2564.9,5.36e-06]
[1751609071617,11.99043,2565.1,2564.9,0.77947536]
[1751609071815,11.211,2565.1,2565.0,0.6894]
[1751609072016,0.77942,2565.1,2565.0,2.7192]
[1751609072412,0.77941,2565.2,2565.0,3.49865]
[1751609072820,11.99038,2565.3,2564.7,5.80877672]
[1751609073022,0.7794,2565.2,2565.0,0.77943]
[1751609073216,0.77944,2565.1,2564.9,0.77947]
[1751609073523,0.77945,2565.0,2564.8,0.7795]
[1751609073714,0.77944,2565.1,2564.9,0.77948]
[1751609073922,0.77945,2565.0,2564.8,0.77949]
[1751609074219,0.77944,2565.1,2564.8,0.77949]
[1751609074418,2.67166068,2565.2,2564.8,0.77949]
[1751609074419,0.77946,2565.0,2564.8,0.77949]
[1751609074614,0.77946,2565.0,2564.9,0.77948]
[1751609074813,0.77946,2565.0,2564.8,0.7795]
[1751609075021,0.77946,2565.0,2564.9,0.77948]
[1751609075318,2.67166068,2565.2,2564.7,3.13711604]
[1751609075519,0.7794,2565.2,2565.0,0.77943]
[1751609075720,0.77938,2565.3,2564.7,7.75759672]
[1751609075923,0.77938,2565.3,2565.1,0.77941]
[1751609076115,0.77938,2565.3,2565.2,0.6544]
[1751609076318,2.67166068,2565.3,2564.9,0.77947]
[1751609076518,0.7794,2565.2,2565.0,0.77944]
[1751609076920,0.77945,2565.1,2564.9,0.77946]
[1751609077220,0.77948,2564.9,2564.7,3.91663604]
[1751609077417,0.77948,2564.9,2564.7,3.91664604]
[1751609077619,0.77951,2564.8,2564.7,3.13711604]
[1751609080222,0.77964,2564.4,2563.5,3.2078]
[1751609080423,0.77972,2564.2,2563.7,4.69906068]
[1751609080726,0.77972,2564.1,2563.9,0.77976]
[1751609080919,0.77972,2564.1,2564.0,0.6743]
[1751609081115,0.6703,2564.3,2563.8,1.3243]
[1751609081322,5.87946068,2564.1,2563.6,1.45418]
[1751609081523,3.2078,2564.1,2563.6,0.6743]
[1751609081820,0.77977,2564.0,2563.7,0.77983]
[1751609082020,3.2078,2564.1,2563.7,1.3243]
[1751609082325,3.2078,2564.1,2563.1,3.2078]
[1751609082522,12.5754,2564.3,2563.4,0.77993]
[1751609082523,3.98764,2563.8,2563.4,0.77993]
[1751609082726,3.2078,2563.8,2563.5,0.77989]
[1751609083025,3.2078,2563.8,2563.6,0.77988]
[1751609083224,0.78006,2563.0,2562.9,0.31340656]
[1751609083419,0.78006,2563.0,2561.2,12.3762017]
[1751609083420,13.87430676,2563.0,2562.1,3.2078]
[1751609083620,2.0647,2563.7,2562.1,5.1843]
[1751609083621,3.2078,2562.7,2562.1,5.1843]
[1751609083818,0.00616556,2562.9,2562.8,0.78012]
[1751609084024,3.2078,2563.5,2562.5,5.2044]
[1751609084326,3.2078,2563.2,2562.8,0.7801]
[1751609084523,3.2078,2563.2,2561.4,3.2078]
[1751609084524,8.77530676,2562.9,2561.4,3.2078]
[1751609084722,3.2078,2562.5,2562.0,3.2078]
[1751609084928,3.2078,2562.5,2562.1,2.10743]
[1751609085222,3.2078,2562.5,2562.1,1.3271]
[1751609085426,0.00647016,2562.4,2562.1,1.3271]
[1751609085629,0.6557,2562.8,2562.4,0.78023]
[1751609085818,0.00654632,2562.4,2562.1,10.10240676]
[1751609086022,6.32e-06,2562.4,2562.3,0.78027]
[1751609086224,8.77530676,2563.2,2562.2,1.95076]
[1751609086419,1.3252,2563.1,2562.8,0.78011]
[1751609086722,3.2078,2562.9,2562.1,8.77530676]
[1751609086923,3.2078,2562.9,2562.2,1.95076]
[1751609087125,3.2078,2562.9,2562.8,0.78012]
[1751609087419,3.907,2563.3,2562.9,0.78006]
[1751609087620,5.2322,2563.3,2562.6,1.95044]
[1751609087829,3.2078,2563.3,2563.2,0.78]
[1751609088126,3.8777,2564.0,2563.0,8.77530676]
[1751609088429,3.8543,2564.3,2564.0,0.77973]
[1751609088622,1.1839148,2564.2,2564.1,0.77972]
[1751609089127,3.2078,2564.3,2564.2,0.77969]
[1751609089328,4.39171197,2564.3,2564.2,0.77969]
[1751609089640,3.2078,2564.3,2564.2,0.77969]
[1751609089930,3.2078,2564.6,2564.5,0.77957]
[1751609091929,3.2078,2564.9,2564.6,0.77957]
[1751609092129,3.2078,2564.9,2564.2,1.94924]
[1751609092331,38.3992,2565.1,2564.8,0.77951]
[1751609092527,3.2078,2565.2,2564.9,0.77948]
[1751609093025,8.77530676,2565.2,2564.3,3.8978]
[1751609093226,3.2078,2564.9,2564.8,0.77951]
[1751609093426,40.2058,2565.2,2564.9,0.77947]
[1751609093628,40.98519,2565.2,2564.9,0.77947]
[1751609094327,3.2078,2565.2,2564.3,9.46530676]
[1751609094526,3.2078,2565.2,2564.8,0.77949]
[1751609094727,3.9872,2565.2,2564.9,0.77945]
[1751609095128,3.2078,2565.2,2565.0,0.77945]
[1751609095631,3.9872,2565.2,2564.9,0.77947]
[1751609095928,3.2078,2565.2,2565.1,0.77942]
[1751609098633,3.2078,2565.5,2565.0,0.7064]
[1751609098839,3.2078,2565.5,2565.4,0.77933]
[1751609099536,3.2078,2565.5,2565.3,0.77935]
[1751609099837,3.2078,2565.5,2565.2,0.77938]
[1751609100033,3.2078,2565.5,2565.1,0.7794]
[1751609100233,0.77935,2565.4,2565.0,0.7064]
[1751609100432,2.15025,2565.4,2565.0,0.7064]
[1751609100633,3.2078,2565.2,2565.0,0.7064]
[1751609100828,3.2078,2565.2,2564.8,0.77948]
[1751609101033,3.9872,2565.2,2564.7,0.6521]
[1751609101235,3.9872,2565.2,2564.8,0.7795]
[1751609101630,3.2078,2565.2,2564.7,0.6521]
[1751609101936,3.2078,2565.2,2565.0,0.77944]
[1751609102133,3.2078,2565.2,2565.1,0.77942]
[1751609102735,3.2078,2565.8,2565.1,16.445]
[1751609102942,3.2078,2566.1,2565.6,5.56750676]
[1751609103234,3.2078,2566.1,2565.4,3.2078]
[1751609103437,0.77925,2565.7,2565.3,0.77935]
[1751609103634,0.77925,2565.7,2565.2,1.46318]
[1751609103635,0.77926,2565.7,2565.2,1.46318]
[1751609103840,0.77926,2565.7,2565.2,0.6838]
[1751609104042,0.77931,2565.5,2565.2,0.6838]
[1751609104634,0.6866,2565.6,2564.9,1.3088]
[1751609104635,3.2078,2565.4,2564.9,1.3088]
[1751609104839,3.2078,2565.1,2564.9,0.77947]
[1751609105140,3.2078,2565.1,2564.8,0.6519]
[1751609105637,3.2078,2565.1,2564.7,3.8599]
[1751609105838,3.98724,2565.1,2564.7,4.63944]
[1751609106037,0.77946,2565.0,2564.7,3.8599]
[1751609106235,5.15665,2564.8,2563.7,3.2078]
[1751609106444,5.15665,2564.8,2563.1,5.40074159]
[1751609106445,3.2078,2563.9,2563.3,3.2078]
[1751609106640,3.2078,2563.9,2563.6,0.77987]
[1751609107242,3.2078,2563.9,2563.5,0.77989]
[1751609107437,3.2078,2563.9,2563.4,0.77994]
[1751609107438,3.98761,2563.9,2563.4,0.77994]
[1751609107643,5.28531,2563.9,2563.4,0.77994]
[1751609108644,4.5055,2563.9,2563.5,0.7799]
[1751609109039,5.28529,2563.9,2563.4,0.77992]
[1751609109445,5.28529,2563.9,2563.5,0.77991]
[1751609109646,4.5055,2563.9,2563.4,0.77992]
[1751609109843,4.5055,2563.9,2563.3,4.5883]
[1751609109844,3.2078,2563.9,2563.3,10.15580676]
[1751609110048,3.2078,2563.9,2563.7,0.77985]
[1751609110244,3.2078,2563.9,2563.8,0.77982]
[1751609110745,3.2078,2563.9,2563.3,3.2078]
[1751609110946,3.9876,2563.9,2563.3,3.2078]
[1751609111245,1.2858,2563.8,2563.4,0.77991]
[1751609111647,3.2078,2563.6,2563.4,0.77991]
[1751609112149,3.2078,2563.6,2563.5,0.77991]
[1751609113751,3.2078,2563.9,2563.7,0.77983]
[1751609114047,3.2078,2563.9,2563.8,0.77982]
[1751609115043,3.2078,2564.2,2564.0,0.77975]
[1751609115238,8.77530676,2564.2,2563.6,0.77988]
[1751609115544,3.2078,2563.8,2563.5,0.77989]
[1751609115942,4.5023,2563.8,2563.5,0.77989]
[1751609117150,4.5023,2563.8,2563.6,0.77988]
[1751609117343,4.5023,2563.8,2563.2,1.9352]
[1751609117539,4.5023,2563.8,2563.5,0.77989]
[1751609118850,4.5023,2563.8,2563.6,0.77988]
[1751609119250,4.5023,2563.8,2563.5,0.77989]
[1751609119946,4.5023,2563.8,2563.6,0.77988]
[1751609120953,4.5023,2563.8,2563.7,0.77985]
[1751609121653,3.2078,2563.8,2563.7,0.77985]
[1751609122553,3.2078,2563.8,2563.1,3.2078]
[1751609122954,3.2078,2563.8,2563.7,0.77985]
[1751609123153,3.2078,2563.8,2563.3,1.94993]
[1751609123347,3.2078,2563.8,2563.7,0.77985]
[1751609123546,3.2078,2563.8,2563.6,0.77986]
[1751609123946,4.5579,2563.8,2563.6,0.77986]
[1751609125055,4.5579,2563.8,2563.6,0.77987]
[1751609125857,4.5579,2563.8,2563.7,0.77985]
[1751609126458,3.2078,2563.8,2563.7,0.77985]
[1751609129559,3.2078,2563.8,2563.6,0.77986]
[1751609130057,8.77530676,2563.8,2562.6,1.95044]
[1751609130251,3.2078,2563.3,2562.8,3.2078]
[1751609130559,3.2078,2563.3,2563.0,0.78005]
[1751609130760,3.98777,2563.3,2563.0,0.78005]
[1751609131062,0.78001,2563.2,2562.9,0.78007]
[1751609131261,0.6516,2563.1,2562.7,0.78014]
[1751609131461,3.2078,2563.0,2562.8,0.78011]
[1751609131759,3.2078,2563.0,2562.6,2.7619]
[1751609131760,3.2078,2563.0,2562.9,0.78009]
[1751609133662,3.2078,2563.0,2562.7,0.78014]
[1751609133851,1.4151,2562.9,2562.7,0.78014]
[1751609134251,2.19521,2562.9,2562.5,3.2078]
[1751609134456,2.19521,2562.9,2562.6,0.78017]
[1751609134756,3.2078,2563.0,2562.5,3.2078]
[1751609134956,3.2078,2563.0,2562.8,0.78012]
[1751609135160,3.2078,2563.0,2562.7,0.78013]
[1751609135361,3.2078,2563.0,2562.8,0.78012]
[1751609135661,3.2078,2563.0,2562.9,0.78009]
[1751609136059,3.2078,2563.0,2562.8,0.7801]
[1751609136365,3.2078,2563.0,2562.9,0.78009]
[1751609139762,12.24796,2563.4,2562.9,0.78009]
[1751609139763,3.2078,2563.4,2563.1,1.95005]
[1751609139963,3.2078,2563.4,2563.3,0.77997]
[1751609140361,3.2078,2563.7,2563.4,0.77994]
[1751609140562,3.2078,2563.7,2563.6,0.77988]
[1751609140964,3.2078,2563.7,2563.5,0.7799]
[1751609141165,3.2078,2563.7,2563.6,0.77988]
[1751609141367,3.2078,2563.7,2562.8,3.2078]
[1751609141567,3.2078,2563.4,2562.8,3.2078]
[1751609141767,0.78002,2563.2,2562.8,0.7801]
[1751609141972,0.6828,2563.1,2563.0,0.78006]
[1751609142170,0.6828,2563.1,2562.8,0.78011]
[1751609142370,4.67064,2563.1,2562.8,0.78011]
[1751609142561,3.8906,2563.1,2562.6,1.3996]
[1751609142766,3.2078,2563.1,2562.6,2.7436]
[1751609143067,3.2078,2563.1,2562.9,0.78007]
[1751609143369,3.2078,2563.1,2563.0,0.78006]
[1751609143777,3.2078,2563.4,2563.3,0.77996]
[1751609144072,3.98767,2563.7,2562.8,8.77530676]
[1751609144365,3.2078,2563.7,2563.6,0.77988]
[1751609145074,4.5711,2564.0,2563.9,0.77979]
[1751609145570,2.3072768,2565.0,2563.9,19.6138]
[1751609145772,3.2078,2565.0,2564.5,5.56750676]
[1751609146071,3.2078,2565.0,2564.4,3.2078]
[1751609146271,3.2078,2565.0,2564.7,0.77952]
[1751609146468,4.5272,2565.0,2564.6,0.77957]
[1751609146668,4.5272,2565.0,2564.4,3.2078]
[1751609146870,4.5272,2565.0,2564.8,0.77948]
[1751609147167,3.2078,2565.0,2564.9,0.77948]
[1751609147374,3.2078,2565.0,2564.8,0.7795]
[1751609147574,0.77953,2564.8,2564.4,0.77963]
[1751609147768,3.2078,2564.7,2564.2,3.2078]
[1751609147969,3.2078,2564.7,2564.3,1.393]
[1751609148170,3.98735,2564.7,2564.3,0.77965]
[1751609148374,3.2078,2564.7,2564.3,0.77965]
[1751609148569,0.77953,2564.8,2564.4,0.77963]
[1751609148769,1.3194,2564.7,2564.4,0.77963]
[1751609149474,2.09895,2564.7,2564.4,0.77962]
[1751609149679,1.3194,2564.7,2564.4,0.77962]
[1751609149879,1.3194,2564.7,2564.5,0.7796]
[1751609150475,1.3194,2564.7,2564.2,3.2078]
[1751609150676,3.2078,2564.3,2563.9,3.2078]
[1751609150877,3.9153,2564.6,2563.9,10.72471676]
[1751609151080,3.9153,2564.6,2564.4,0.77962]
[1751609151477,3.9153,2564.6,2564.0,0.6531]
[1751609151683,1.3336,2564.5,2564.0,0.77975]
[1751609151881,0.77974,2564.1,2563.6,3.2078]
[1751609152082,0.77974,2564.1,2563.8,0.7798]
[1751609152083,0.77973,2564.1,2563.8,0.7798]
[1751609152278,0.77973,2564.1,2563.6,3.2078]
[1751609152474,0.77973,2564.1,2563.9,0.77978]
[1751609152679,2.06793,2564.1,2563.9,0.77978]
[1751609152978,0.77996,2563.4,2563.1,0.78002]
[1751609153182,3.2078,2563.4,2563.2,0.77998]
[1751609153383,3.2078,2563.7,2563.3,0.77997]
[1751609153577,3.98767,2563.7,2563.3,0.77997]
[1751609153778,0.77989,2563.6,2563.3,0.77997]
[1751609153984,3.2078,2563.7,2563.1,0.78001]
[1751609154281,3.2078,2563.4,2563.0,3.98784]
[1751609154485,3.2078,2563.4,2563.0,3.2078]
[1751609154889,3.2078,2563.4,2563.1,0.78002]
[1751609155181,0.77999,2563.3,2563.1,0.78002]
[1751609155480,0.78007,2563.0,2562.8,0.78011]
[1751609155685,0.7801,2562.9,2562.7,0.78014]
[1751609156988,0.78008,2563.0,2562.7,0.78014]
[1751609157186,0.7801,2562.9,2562.7,0.78014]
[1751609157385,2.16138,2563.0,2562.7,0.78014]
[1751609157582,1.3813,2563.0,2562.8,0.78012]
[1751609158087,1.3813,2563.0,2562.6,3.2078]
[1751609158288,1.3813,2563.0,2562.8,0.7801]
[1751609158688,1.3813,2563.0,2562.9,0.7801]
[1751609159088,3.2078,2563.1,2563.0,0.78006]
[1751609159290,3.2078,2563.1,2562.9,0.78008]
[1751609160683,3.2078,2563.1,2562.6,3.2078]
[1751609160885,5.32996,2563.4,2562.7,8.93026676]
[1751609161084,0.77999,2563.3,2563.0,0.78006]
[1751609161389,5.32996,2563.4,2562.7,3.36276]
[1751609161687,3.2078,2563.4,2562.7,3.36276]
[1751609161989,3.2078,2563.4,2563.3,0.77997]
[1751609162489,3.2078,2563.4,2563.3,2.10997]
[1751609163389,2.0263,2564.1,2563.4,1.94981]
[1751609163390,3.2078,2563.7,2563.4,1.94981]
[1751609163690,3.2078,2563.7,2563.6,0.77988]
[1751609164288,3.2078,2564.0,2563.8,0.77981]
[1751609164584,3.2078,2564.0,2563.5,1.33]
[1751609164786,3.2078,2564.0,2563.0,3.2078]
[1751609164985,3.2078,2563.6,2563.0,3.2078]
[1751609165191,0.77995,2563.4,2563.1,0.78001]
[1751609165586,0.77997,2563.3,2563.1,0.78001]
[1751609165782,0.77996,2563.4,2563.1,0.78001]
[1751609166393,0.77996,2563.4,2563.2,0.78]
[1751609166987,4.6185,2563.6,2563.0,3.2078]
[1751609167192,0.77999,2563.3,2563.1,0.78002]
[1751609167488,1.3327,2563.5,2563.0,3.2078]
[1751609167489,0.78001,2563.2,2563.0,3.98784]
[1751609167682,1.4107,2563.4,2563.1,0.78003]
[1751609167883,0.78016,2562.7,2562.6,3.2078]
[1751609168090,0.78017,2562.7,2562.3,3.9094]
[1751609168494,0.78015,2562.8,2562.6,0.78019]
[1751609168689,0.78015,2562.8,2562.7,0.78016]
[1751609168889,4.4984,2563.0,2562.7,0.78016]
[1751609169093,0.7801,2562.9,2562.7,0.78016]
[1751609169393,0.78013,2562.8,2562.7,0.78016]
[1751609169594,0.78013,2562.8,2562.6,0.78017]
[1751609170491,0.78012,2562.9,2562.7,0.78016]
[1751609170691,3.2078,2563.0,2562.4,1.3555]
[1751609170890,3.9879,2563.0,2562.8,0.78011]
[1751609171092,0.7801,2562.9,2562.7,0.78015]
[1751609172387,0.78013,2562.8,2562.7,0.78015]
[1751609172690,3.2078,2563.0,2562.7,0.78015]
[1751609172997,0.78012,2562.9,2562.8,0.78013]
[1751609173197,0.78012,2562.9,2562.7,0.78014]
[1751609173397,0.78012,2562.9,2562.4,1.3555]
[1751609173599,0.78013,2562.8,2562.7,0.78013]
[1751609173798,0.78012,2562.9,2562.8,0.78013]
[1751609174195,0.78012,2562.9,2562.7,0.78014]
[1751609174997,0.78012,2562.9,2562.8,0.78013]
[1751609175195,3.2078,2563.0,2562.9,0.7801]
[1751609176298,0.78004,2563.1,2562.9,0.7801]
[1751609176500,0.78004,2563.1,2563.0,0.78007]
[1751609176700,0.78004,2563.1,2562.9,0.78008]
[1751609176900,0.78007,2563.0,2562.7,1.3365]
[1751609177100,0.78007,2563.0,2562.9,0.7801]
[1751609178403,0.78006,2563.1,2563.0,0.78006]
[1751609178899,0.78002,2563.2,2563.1,0.78004]
[1751609180005,3.2078,2563.3,2562.9,0.78009]
[1751609180006,0.78009,2563.0,2562.9,0.78009]
[1751609180807,0.78011,2562.9,2562.8,0.78011]
[1751609181409,0.78014,2562.8,2562.7,0.78014]
[1751609181808,0.78022,2562.6,2562.5,0.7802]
[1751609182799,0.78018,2562.7,2562.6,0.78017]
[1751609183813,0.78015,2562.8,2562.7,0.78014]
[1751609184310,0.78018,2562.7,2562.6,0.78017]
[1751609184712,0.78019,2562.6,2562.5,0.7802]
[1751609185300,0.78022,2562.5,2562.4,0.691]
[1751609185508,3.98802,2562.6,2562.5,0.78022]
[1751609186101,0.78022,2562.6,2562.5,0.78022]
[1751609186406,0.78022,2562.6,2562.0,3.2078]
[1751609186407,3.2078,2562.6,2562.0,3.2078]
[1751609186601,0.78026,2562.4,2562.3,0.78027]
[1751609186809,0.78028,2562.3,2562.2,0.78029]
[1751609187011,0.78029,2562.3,2562.2,0.7803]
[1751609187312,3.2078,2562.6,2562.0,5.2366]
[1751609187512,3.2078,2562.6,2562.5,0.78022]
[1751609187813,3.98799,2562.6,2562.4,0.78023]
[1751609188208,3.2078,2562.6,2562.5,0.78022]
[1751609190309,1.48684,2562.8,2562.2,3.29416]
[1751609190512,1.48684,2562.8,2562.6,0.78016]
[1751609190712,3.2078,2562.7,2562.6,0.78016]
[1751609191214,0.7067,2562.8,2562.7,0.78016]
[1751609191415,0.78011,2562.9,2562.4,1.278]
[1751609191613,0.78011,2562.9,2562.7,0.78014]
[1751609191814,0.7801,2562.9,2562.8,0.78012]
[1751609192015,14.6418,2563.0,2562.9,0.7801]
[1751609193816,3.2078,2563.0,2562.9,0.7801]
[1751609194208,11.434,2563.7,2563.1,1.9501]
[1751609194517,11.434,2563.7,2563.6,0.77988]
[1751609194717,12.61325488,2563.7,2563.6,0.77988]
[1751609194914,3.2078,2563.8,2563.7,0.77985]
[1751609195117,4.3872204,2563.8,2563.7,0.77985]
[1751609195414,3.2078,2563.8,2563.7,0.77985]
[1751609199514,3.2078,2563.8,2563.1,1.95008]
[1751609199515,9.38295982,2563.8,2562.6,3.2078]
[1751609199823,0.78008,2563.0,2562.8,0.7801]
[1751609200414,0.7801,2562.9,2562.8,0.7801]
[1751609200919,0.78009,2563.0,2562.9,0.7801]
[1751609201318,6.22610676,2563.1,2562.8,0.78011]
[1751609201513,0.78008,2563.0,2562.9,0.7801]
[1751609202121,1.43866,2563.1,2563.0,0.78007]
[1751609202418,0.6586,2563.1,2563.0,0.78007]
[1751609202609,1.43864,2563.1,2563.0,0.78007]
[1751609203320,1.42223,2563.2,2563.1,0.78004]
[1751609203621,1.42223,2563.2,2563.0,0.78005]
[1751609203814,1.42223,2563.2,2563.1,0.78004]
[1751609204019,0.6422,2563.2,2563.1,0.78004]
[1751609204422,0.6586,2563.5,2563.2,0.77999]
[1751609204622,0.77996,2563.4,2563.2,0.77999]
[1751609205018,5.15781,2563.3,2562.2,3.2078]
[1751609205227,0.78028,2562.3,2562.2,3.2078]
[1751609206318,5.56750676,2562.4,2561.9,3.98819]
[1751609206518,0.78036,2562.1,2561.9,3.98819]
[1751609206718,0.78036,2562.1,2561.9,3.9882]
[1751609207323,0.78036,2562.1,2562.0,0.78037]
[1751609207624,1.3386,2562.3,2562.0,0.78035]
[1751609207823,1.3386,2562.3,2562.1,0.78034]
[1751609208022,38.2588,2562.6,2562.2,3.2078]
[1751609208325,3.2078,2562.7,2562.2,3.2078]
[1751609208524,3.98798,2562.7,2562.5,0.7802]
[1751609208721,3.98798,2562.7,2562.2,3.2078]
[1751609208915,3.2078,2562.7,2562.2,5.2444]
[1751609209119,3.2078,2562.7,2562.6,0.78019]
[1751609209523,3.98796,2562.7,2562.6,0.78019]
[1751609209722,3.2078,2562.7,2562.6,0.78019]
[1751609210029,40.1368,2562.7,2562.6,0.78019]
[1751609210628,3.2078,2562.7,2562.6,0.78019]
[1751609210827,40.1148,2562.7,2562.6,0.78019]
[1751609211027,40.0998,2562.7,2562.5,0.7802]
[1751609211330,40.87998,2562.7,2562.5,0.78022]
[1751609211529,0.78019,2562.6,2562.5,0.78022]
[1751609212030,40.87998,2562.7,2562.6,0.78019]
[1751609212222,40.0998,2562.7,2562.6,0.78019]
[1751609212624,40.87996,2562.7,2562.6,0.78019]
[1751609212824,40.0998,2562.7,2562.5,0.78021]
[1751609213029,40.87997,2562.7,2562.6,0.78019]
[1751609213425,3.2078,2562.7,2562.6,0.78019]
[1751609214025,57.4769,2563.1,2562.8,0.78013]
[1751609214226,36.863,2563.2,2562.8,3.2078]
[1751609214524,37.64302,2563.2,2563.0,0.78005]
[1751609214729,36.863,2563.2,2563.1,0.78004]
[1751609214922,12.7922,2563.3,2563.2,0.78001]
[1751609215127,50.43518,2563.3,2563.1,0.78001]
[1751609215321,13.57218,2563.3,2563.2,0.78001]
[1751609215527,49.6432,2563.3,2562.9,1.3202]
[1751609215728,50.42318,2563.3,2563.2,0.78001]
[1751609216032,0.78001,2563.2,2563.1,0.78002]
[1751609216232,0.78001,2563.2,2563.0,0.78004]
[1751609216427,0.78001,2563.2,2563.1,0.78004]
[1751609216734,0.78001,2563.2,2562.8,3.8466]
[1751609216735,55.21070676,2563.3,2562.8,3.2078]
[1751609217033,1.3263,2563.2,2562.8,3.9879]
[1751609217531,3.2078,2562.9,2562.5,3.2078]
[1751609217721,5.56750676,2562.7,2562.5,3.2078]
[1751609217927,0.78017,2562.7,2562.6,0.78019]
[1751609218522,37.60315,2562.8,2562.7,0.78016]
[1751609218930,0.78016,2562.7,2562.6,0.78017]
[1751609219234,37.60315,2562.8,2562.7,0.78016]
[1751609219432,0.78017,2562.7,2562.6,0.78017]
[1751609220135,36.823,2562.8,2562.7,0.78016]
[1751609221435,37.60314,2562.8,2562.6,0.78017]
[1751609221635,37.60314,2562.8,2562.7,0.78016]
[1751609222130,36.823,2562.8,2562.7,0.78016]